bitfinex/quotes_BTCUSD_20241128
["timestamp","ask_amount","ask_price","bid_price","bid_amount"]
[1732758334844,0.0490585,96369.0,96368.0,0.107768]
[1732758335101,0.05838298,96369.0,96368.0,0.107768]
[1732758335556,0.0474585,96369.0,96368.0,0.107768]
[1732758336009,0.0752,96383.0,96371.0,0.023]
[1732758336256,0.0752,96383.0,96377.0,0.103759]
[1732758338353,0.0037172,96378.0,96377.0,0.103759]
[1732758338567,0.0017172,96378.0,96377.0,0.103759]
[1732758339008,0.0017172,96378.0,96377.0,0.106759]
[1732758340144,0.0017172,96378.0,96377.0,0.11650156]
[1732758340860,0.0017172,96378.0,96377.0,0.11950156]
[1732758341092,0.0017172,96378.0,96377.0,0.109759]
[1732758342291,0.0017172,96378.0,96377.0,0.211759]
[1732758342547,0.0017172,96378.0,96377.0,0.129759]
[1732758342778,0.0017172,96378.0,96377.0,0.109759]
[1732758343253,0.0017172,96378.0,96377.0,0.106759]
[1732758344174,0.0017172,96378.0,96377.0,0.129759]
[1732758344397,0.0017172,96378.0,96377.0,0.13127888]
[1732758344854,0.0002,96389.0,96388.0,0.103747]
[1732758345080,0.0002,96389.0,96388.0,0.1052667]
[1732758345301,0.0002,96389.0,96388.0,0.1282667]
[1732758346237,0.0002,96389.0,96388.0,0.2782667]
[1732758346472,0.0002,96389.0,96388.0,0.276747]
[1732758346473,0.0022,96389.0,96388.0,0.276747]
[1732758347935,0.0022,96389.0,96388.0,0.2865122]
[1732758348178,0.0497,96389.0,96388.0,0.103747]
[1732758348426,0.0497,96389.0,96388.0,0.005]
[1732758348670,0.06169841,96389.0,96388.0,0.011]
[1732758348892,0.06169841,96389.0,96374.0,0.207524]
[1732758348893,0.05869841,96389.0,96385.0,0.207499]
[1732758349136,0.05969841,96389.0,96388.0,0.109747]
[1732758349388,0.06069841,96389.0,96388.0,0.014]
[1732758349610,0.16344441,96389.0,96378.0,0.103757]
[1732758349847,0.16344441,96389.0,96363.0,0.09335102]
[1732758349848,0.05869841,96389.0,96364.0,0.207546]
[1732758350061,0.207494,96388.0,96363.0,0.09335102]
[1732758350308,0.103749,96386.0,96380.0,0.103755]
[1732758350777,0.0477,96389.0,96378.0,0.103757]
[1732758350778,0.11472652,96385.0,96378.0,0.103757]
[1732758351265,0.103752,96383.0,96378.0,0.103757]
[1732758351501,0.103753,96382.0,96376.0,0.103759]
[1732758351726,0.103753,96382.0,96364.0,0.173]
[1732758351727,0.01096778,96382.0,96366.0,0.023]
[1732758351949,0.103758,96378.0,96372.0,0.103764]
[1732758352184,0.01096778,96382.0,96364.0,0.207546]
[1732758352185,0.12420563,96382.0,96364.0,0.207546]
[1732758352411,0.103762,96374.0,96364.0,0.207546]
[1732758352626,0.22705084,96382.0,96363.0,0.0008581]
[1732758352627,0.10284521,96382.0,96363.0,0.0008581]
[1732758352838,0.01096311,96381.0,96376.0,0.001]
[1732758353078,0.10284521,96382.0,96376.0,0.001]
[1732758353079,0.10284521,96382.0,96381.0,0.103754]
[1732758353321,0.0477,96389.0,96376.0,0.001]
[1732758353819,0.0477,96389.0,96387.0,0.103747]
[1732758354271,0.0477,96389.0,96387.0,0.103748]
[1732758357039,0.004,96388.0,96383.0,0.103752]
[1732758357260,0.004,96388.0,96377.0,0.207518]
[1732758357512,0.10375,96385.0,96379.0,0.103756]
[1732758357991,0.004,96388.0,96379.0,0.103756]
[1732758357992,0.103751,96384.0,96379.0,0.103756]
[1732758358223,0.004,96388.0,96377.0,0.207518]
[1732758358453,0.103749,96387.0,96378.0,0.207516]
[1732758358720,0.10375,96386.0,96379.0,0.103756]
[1732758358963,0.11471675,96386.0,96379.0,0.10283282]
[1732758359194,0.11471675,96386.0,96380.0,0.103755]
[1732758359413,0.01096675,96386.0,96378.0,0.103757]
[1732758359628,0.01096675,96386.0,96376.0,0.001716]
[1732758359846,0.103752,96383.0,96377.0,0.103758]
[1732758360058,0.103754,96382.0,96377.0,0.103758]
[1732758360245,0.01095642,96382.0,96376.0,0.001716]
[1732758360531,0.11471042,96382.0,96377.0,0.103758]
[1732758360759,0.207494,96388.0,96376.0,0.001716]
[1732758360979,0.01095384,96381.0,96380.0,0.103755]
[1732758361288,0.35803821,96389.0,96379.0,0.103756]
[1732758361289,0.15054521,96389.0,96379.0,0.103756]
[1732758361505,0.103753,96383.0,96377.0,0.103759]
[1732758361717,0.103753,96383.0,96377.0,0.103758]
[1732758361942,0.01095218,96382.0,96377.0,0.103758]
[1732758362176,0.01095218,96382.0,96378.0,0.103758]
[1732758362389,0.01095218,96382.0,96379.0,0.103756]
[1732758362633,0.01095218,96382.0,96376.0,0.001716]
[1732758362634,0.01095218,96382.0,96381.0,0.103754]
[1732758362854,0.15054521,96389.0,96384.0,0.103751]
[1732758363088,0.15054521,96389.0,96380.0,0.207511]
[1732758363325,0.15054521,96389.0,96379.0,0.103756]
[1732758363565,0.15054521,96389.0,96379.0,0.001]
[1732758363823,0.0477,96389.0,96387.0,0.103748]
[1732758364290,0.0477,96389.0,96377.0,0.023]
[1732758364505,0.0477,96389.0,96378.0,0.103758]
[1732758364728,0.0477,96389.0,96377.0,0.11604601]
[1732758364729,0.0477,96389.0,96385.0,0.103749]
[1732758364947,0.0477,96389.0,96377.0,0.023]
[1732758364948,0.0477,96389.0,96387.0,0.103748]
[1732758365196,0.0477,96389.0,96384.0,0.207501]
[1732758365457,0.414988,96388.0,96379.0,0.00104879]
[1732758365737,0.103755,96381.0,96376.0,0.001716]
[1732758366198,0.15154521,96389.0,96376.0,0.001716]
[1732758366412,0.103753,96382.0,96377.0,0.103759]
[1732758366623,0.207496,96387.0,96376.0,0.001716]
[1732758366889,0.103755,96381.0,96376.0,0.001716]
[1732758367118,0.233059,96377.0,96376.0,0.001716]
[1732758367339,0.233059,96377.0,96376.0,0.002716]
[1732758367565,0.33590421,96377.0,96376.0,0.002716]
[1732758368727,0.34564322,96377.0,96376.0,0.001716]
[1732758368954,0.49564322,96377.0,96376.0,0.001716]
[1732758369860,0.50264322,96377.0,96376.0,0.001716]
[1732758370101,0.49764322,96377.0,96376.0,0.001716]
[1732758370319,0.49564322,96377.0,96376.0,0.001716]
[1732758370556,0.50464322,96377.0,96376.0,0.002716]
[1732758370778,0.50164322,96377.0,96376.0,0.002716]
[1732758372407,0.51064322,96377.0,96376.0,0.003716]
[1732758372888,0.53064322,96377.0,96376.0,0.003716]
[1732758373145,0.53064322,96377.0,96333.0,0.207612]
[1732758373146,0.233073,96364.0,96333.0,0.207612]
[1732758373375,0.233073,96364.0,96336.0,0.103802]
[1732758373376,0.33591821,96364.0,96336.0,0.103802]
[1732758373646,0.33591821,96364.0,96338.0,0.1038]
[1732758373886,0.48591821,96364.0,96330.0,0.207618]
[1732758374110,0.49675284,96364.0,96332.0,0.103807]
[1732758374325,0.49675284,96364.0,96330.0,0.207618]
[1732758374326,0.49675284,96364.0,96335.0,0.103804]
[1732758374554,0.49675284,96364.0,96336.0,0.103803]
[1732758375026,0.49675284,96364.0,96327.0,0.0207246]
[1732758375464,0.49675284,96364.0,96329.0,0.10381]
[1732758375688,0.50375284,96364.0,96329.0,0.207619]
[1732758375939,0.50375284,96364.0,96337.0,0.103802]
[1732758376194,0.50175284,96364.0,96333.0,0.207611]
[1732758376424,0.49675284,96364.0,96336.0,0.103803]
[1732758376652,0.51575268,96364.0,96363.0,0.0018581]
[1732758376901,0.53575268,96364.0,96363.0,0.0018581]
[1732758377171,0.53575268,96364.0,96316.0,0.207648]
[1732758377172,0.01,96361.0,96316.0,0.207648]
[1732758377395,0.207613,96333.0,96316.0,0.207649]
[1732758377618,0.0469,96334.0,96316.0,0.207649]
[1732758377619,0.103815,96325.0,96316.0,0.207649]
[1732758378046,0.103817,96324.0,96319.0,0.103821]
[1732758378295,0.103817,96324.0,96316.0,0.207649]
[1732758378537,0.01070834,96324.0,96315.0,0.0797]
[1732758378785,0.01070834,96324.0,96320.0,0.10382]
[1732758379014,0.207618,96331.0,96317.0,0.207647]
[1732758379015,0.103815,96325.0,96319.0,0.103821]
[1732758379230,0.103815,96325.0,96315.0,0.0797]
[1732758379231,0.01070575,96323.0,96315.0,0.0797]
[1732758379474,0.01070575,96323.0,96296.0,0.01]
[1732758379475,0.01070834,96324.0,96311.0,0.023]
[1732758379702,0.103825,96316.0,96309.0,0.103832]
[1732758379920,0.22705084,96330.0,96304.0,0.023]
[1732758380137,0.22705084,96330.0,96302.0,0.023]
[1732758380376,0.10382,96321.0,96315.0,0.103825]
[1732758380597,0.10382,96321.0,96309.0,0.207664]
[1732758380598,0.10382,96321.0,96316.0,0.103824]
[1732758380816,0.01068878,96320.0,96316.0,0.103824]
[1732758381347,0.01068878,96320.0,96314.0,0.103826]
[1732758381512,0.01068878,96320.0,96315.0,0.103825]
[1732758381743,0.10382,96321.0,96315.0,0.103825]
[1732758382192,0.01068878,96320.0,96315.0,0.103825]
[1732758382652,0.10382,96321.0,96315.0,0.103825]
[1732758382889,0.001,96320.0,96315.0,0.103825]
[1732758383148,0.01068878,96320.0,96315.0,0.103825]
[1732758383381,0.001,96321.0,96308.0,0.023]
[1732758383616,0.001,96321.0,96316.0,0.103824]
[1732758383833,0.01068878,96320.0,96316.0,0.103824]
[1732758384046,0.001,96321.0,96316.0,0.103824]
[1732758384389,0.01068878,96320.0,96316.0,0.103824]
[1732758384606,0.01168878,96320.0,96316.0,0.103824]
[1732758385049,0.01068878,96320.0,96316.0,0.103824]
[1732758385493,0.01068878,96320.0,96308.0,0.023]
[1732758385494,0.103823,96318.0,96308.0,0.023]
[1732758385726,0.01068878,96320.0,96315.0,0.103825]
[1732758385954,0.01063743,96317.0,96315.0,0.103825]
[1732758386224,0.10582,96321.0,96315.0,0.103825]
[1732758386429,0.01063484,96316.0,96315.0,0.103825]
[1732758386646,0.001,96320.0,96316.0,0.103824]
[1732758387085,0.103817,96323.0,96316.0,0.103824]
[1732758387299,0.001,96317.0,96312.0,0.311487]
[1732758387547,0.001,96317.0,96316.0,0.103824]
[1732758387777,0.103818,96322.0,96311.0,0.20766]
[1732758388039,0.001,96320.0,96317.0,0.103823]
[1732758388303,0.207625,96328.0,96309.0,0.207664]
[1732758388518,0.00995336,96341.0,96311.0,0.023]
[1732758388769,0.20758,96348.0,96314.0,0.0797]
[1732758388987,0.0106969,96340.0,96317.0,0.023]
[1732758389226,0.207585,96346.0,96317.0,0.023]
[1732758389461,0.207585,96346.0,96333.0,0.207611]
[1732758389462,0.103796,96343.0,96333.0,0.207611]
[1732758389690,0.103796,96343.0,96337.0,0.103801]
[1732758389931,0.0106916,96342.0,96337.0,0.103801]
[1732758391784,0.0106916,96342.0,96336.0,0.103802]
[1732758392023,0.0126916,96342.0,96337.0,0.103801]
[1732758392247,0.0166916,96342.0,96337.0,0.103801]
[1732758392700,0.1204886,96342.0,96335.0,0.207608]
[1732758392930,0.0166916,96342.0,96337.0,0.103802]
[1732758393389,0.0166916,96342.0,96341.0,0.103797]
[1732758393390,0.0146916,96342.0,96341.0,0.103797]
[1732758393598,0.0146916,96342.0,96332.0,0.0767]
[1732758393827,0.0156916,96342.0,96338.0,0.1038]
[1732758394080,0.0156916,96342.0,96335.0,0.023]
[1732758394301,0.06494771,96366.0,96336.0,0.0456]
[1732758394302,0.103778,96360.0,96336.0,0.0456]
[1732758394563,0.0487,96366.0,96336.0,0.0456]
[1732758394564,0.001,96342.0,96341.0,0.103797]
[1732758395016,0.10284521,96359.0,96337.0,0.023]
[1732758395232,0.003,96342.0,96341.0,0.103797]
[1732758395448,0.01075568,96358.0,96337.0,0.023]
[1732758395659,0.10284521,96358.0,96354.0,0.103783]
[1732758395918,0.0107531,96357.0,96341.0,0.211594]
[1732758396158,0.1145341,96357.0,96349.0,0.207578]
[1732758396371,0.0107531,96357.0,96352.0,0.103786]
[1732758397520,0.1145331,96357.0,96352.0,0.103786]
[1732758397973,0.0107531,96357.0,96352.0,0.103786]
[1732758398212,0.1145341,96357.0,96352.0,0.104786]
[1732758398445,0.0117531,96357.0,96352.0,0.104786]
[1732758398669,0.0117531,96357.0,96352.0,0.001]
[1732758399116,0.103782,96356.0,96352.0,0.001]
[1732758399350,0.0117531,96357.0,96352.0,0.104786]
[1732758399760,0.01078603,96355.0,96352.0,0.104786]
[1732758399761,0.01078862,96356.0,96352.0,0.104786]
[1732758400017,0.01078862,96356.0,96352.0,0.001]
[1732758400266,0.01078862,96356.0,96355.0,0.103782]
[1732758400490,0.01078862,96356.0,96355.0,0.12855434]
[1732758400718,0.0487,96375.0,96363.0,0.103774]
[1732758402421,0.0057162,96364.0,96363.0,0.10558803]
[1732758403099,0.0057162,96364.0,96363.0,0.103774]
[1732758403317,0.0057162,96364.0,96363.0,0.09887601]
[1732758403562,0.01655179,96364.0,96363.0,0.09887601]
[1732758403830,0.0037162,96364.0,96363.0,0.09887601]
[1732758404318,0.0037162,96364.0,96363.0,0.10187601]
[1732758404567,0.0017162,96364.0,96363.0,0.09887601]
[1732758405024,0.0017162,96364.0,96363.0,0.10087601]
[1732758405471,0.0017162,96364.0,96363.0,0.10187601]
[1732758405700,0.0017162,96364.0,96363.0,0.10087601]
[1732758406388,0.0017162,96364.0,96363.0,0.09887601]
[1732758406877,0.0017162,96364.0,96363.0,0.003]
[1732758407108,0.0017162,96364.0,96363.0,0.006]
[1732758407326,0.11632479,96364.0,96363.0,0.003]
[1732758407538,0.0017162,96364.0,96363.0,0.002]
[1732758407772,0.0017162,96364.0,96363.0,0.003]
[1732758407773,0.30083129,96364.0,96363.0,0.003]
[1732758407993,0.28983441,96364.0,96363.0,0.002]
[1732758408211,0.30083611,96364.0,96363.0,0.002]
[1732758408456,0.30083611,96364.0,96363.0,0.003]
[1732758408659,0.30083611,96364.0,96363.0,0.001]
[1732758408879,0.103781,96357.0,96351.0,0.103787]
[1732758409318,0.01098103,96356.0,96351.0,0.103787]
[1732758409543,0.01098103,96356.0,96345.0,0.207586]
[1732758409810,0.103783,96355.0,96345.0,0.207586]
[1732758410042,0.01098103,96356.0,96347.0,0.207583]
[1732758410280,0.10284521,96363.0,96350.0,0.103787]
[1732758410500,0.0872162,96364.0,96350.0,0.103787]
[1732758410501,0.103782,96356.0,96350.0,0.103787]
[1732758410961,0.01097845,96355.0,96350.0,0.103787]
[1732758411174,0.01097845,96355.0,96351.0,0.103786]
[1732758412260,0.01097845,96355.0,96346.0,0.207585]
[1732758412484,0.01097845,96355.0,96351.0,0.001]
[1732758412717,0.103786,96352.0,96351.0,0.001]
[1732758413162,0.11476062,96352.0,96351.0,0.001]
[1732758413619,0.11476062,96352.0,96337.0,0.4980641]
[1732758413620,0.01097462,96352.0,96337.0,0.2084611]
[1732758413854,0.103789,96350.0,96337.0,0.2084611]
[1732758414092,0.11476062,96352.0,96346.0,0.001]
[1732758414318,0.01123665,96349.0,96346.0,0.001]
[1732758414538,0.0463,96353.0,96347.0,0.103791]
[1732758414781,0.01123406,96348.0,96347.0,0.103791]
[1732758415067,0.103786,96352.0,96343.0,0.207591]
[1732758415068,0.002,96352.0,96343.0,0.207591]
[1732758415290,0.002,96352.0,96338.0,0.207602]
[1732758415512,0.103782,96356.0,96338.0,0.207602]
[1732758415513,0.01124182,96351.0,96349.0,0.103789]
[1732758415963,0.103783,96355.0,96349.0,0.103789]
[1732758416189,0.31040421,96358.0,96349.0,0.103789]
[1732758416190,0.103784,96354.0,96349.0,0.103789]
[1732758416406,0.11503357,96354.0,96349.0,0.103789]
[1732758416872,0.001,96353.0,96349.0,0.103789]
[1732758417359,0.0112444,96352.0,96349.0,0.103789]
[1732758418007,0.103784,96354.0,96349.0,0.103789]
[1732758418220,0.01224182,96351.0,96349.0,0.103789]
[1732758418433,0.103784,96354.0,96349.0,0.103789]
[1732758418649,0.01123923,96350.0,96349.0,0.104789]
[1732758418863,0.01123923,96350.0,96349.0,0.001]
[1732758419078,0.001,96352.0,96349.0,0.001]
[1732758419292,0.001,96352.0,96350.0,0.103788]
[1732758419502,0.01124182,96351.0,96350.0,0.103788]
[1732758419714,0.01224182,96351.0,96350.0,0.103788]
[1732758420685,0.01224182,96351.0,96350.0,0.184188]
[1732758421122,0.001,96351.0,96350.0,0.184188]
[1732758422063,0.001,96351.0,96350.0,0.185188]
[1732758422594,0.001,96351.0,96350.0,0.184188]
[1732758422813,0.0017162,96364.0,96361.0,0.103775]
[1732758423284,0.011273,96363.0,96358.0,0.207559]
[1732758423523,0.011273,96363.0,96352.0,0.207572]
[1732758423524,0.115048,96363.0,96352.0,0.207572]
[1732758423753,0.103775,96363.0,96352.0,0.207572]
[1732758423967,0.01128651,96362.0,96350.0,0.0834]
[1732758424217,0.01128651,96362.0,96358.0,0.103779]
[1732758424425,0.01128651,96362.0,96352.0,0.207571]
[1732758424426,0.01128651,96362.0,96357.0,0.10378]
[1732758424692,0.22674521,96361.0,96337.0,0.0008581]
[1732758424935,0.103785,96353.0,96352.0,0.002]
[1732758425173,0.33053021,96353.0,96352.0,0.002]
[1732758425383,0.103794,96344.0,96337.0,0.1046591]
[1732758425607,0.103794,96344.0,96338.0,0.1038]
[1732758425858,0.00693663,96344.0,96342.0,0.103796]
[1732758426096,0.22674521,96353.0,96339.0,0.207598]
[1732758426312,0.00693663,96344.0,96343.0,0.1046531]
[1732758426536,0.22674521,96353.0,96350.0,0.103787]
[1732758426768,0.22674521,96353.0,96344.0,0.207589]
[1732758426978,0.22674521,96353.0,96348.0,0.103789]
[1732758426979,0.00694103,96352.0,96348.0,0.103789]
[1732758427198,0.00694103,96352.0,96343.0,0.0008581]
[1732758427683,0.103794,96344.0,96343.0,0.0008581]
[1732758428122,0.00693055,96344.0,96343.0,0.0008581]
[1732758428572,0.103794,96344.0,96343.0,0.0008581]
[1732758428789,0.11072455,96344.0,96343.0,0.0008581]
[1732758429003,0.00693055,96344.0,96343.0,0.0008581]
[1732758429495,0.11072455,96344.0,96343.0,0.0028581]
[1732758429739,0.103794,96344.0,96343.0,0.0028581]
[1732758429955,0.11072455,96344.0,96343.0,0.0028581]
[1732758430189,0.00693055,96344.0,96343.0,0.0028581]
[1732758430655,0.103792,96346.0,96343.0,0.0028581]
[1732758430880,0.103792,96346.0,96343.0,0.0038581]
[1732758431095,0.0069321,96345.0,96343.0,0.0038581]
[1732758431751,0.0069321,96345.0,96343.0,0.0018581]
[1732758432218,0.103791,96348.0,96343.0,0.0018581]
[1732758432458,0.00693055,96344.0,96343.0,0.0008581]
[1732758432702,0.207572,96352.0,96344.0,0.103794]
[1732758432921,0.207572,96352.0,96343.0,0.0018581]
[1732758432922,0.103791,96348.0,96343.0,0.0018581]
[1732758433135,0.103791,96348.0,96343.0,0.0008581]
[1732758433359,0.0069352,96347.0,96346.0,0.103792]
[1732758433803,0.25503021,96353.0,96344.0,0.207589]
[1732758433804,0.25503021,96353.0,96347.0,0.103791]
[1732758434021,0.003,96352.0,96343.0,0.0018581]
[1732758434264,0.003,96352.0,96351.0,0.103787]
[1732758434485,0.103772,96365.0,96359.0,0.103778]
[1732758434712,0.0755,96376.0,96348.0,0.20758]
[1732758434961,0.103762,96374.0,96363.0,0.103774]
[1732758435178,0.0484,96376.0,96363.0,0.103774]
[1732758435416,0.207523,96375.0,96363.0,0.103774]
[1732758436137,0.0484,96376.0,96363.0,0.103774]
[1732758436138,0.0037162,96364.0,96363.0,0.103774]
[1732758436372,0.0017162,96364.0,96363.0,0.103774]
[1732758436840,0.0017162,96364.0,96363.0,0.104774]
[1732758438302,0.0017162,96364.0,96363.0,0.001]
[1732758438543,0.1054892,96364.0,96363.0,0.001]
[1732758438814,0.0017162,96364.0,96363.0,0.001]
[1732758439080,0.0017162,96364.0,96363.0,0.104774]
[1732758439551,0.0017162,96364.0,96363.0,0.001]
[1732758440026,0.00866917,96364.0,96363.0,0.104774]
[1732758440267,0.0017162,96364.0,96363.0,0.104774]
[1732758440541,0.0017162,96364.0,96363.0,0.001]
[1732758440769,0.0017162,96364.0,96363.0,0.104774]
[1732758441237,0.00866917,96364.0,96363.0,0.104774]
[1732758441476,0.0017162,96364.0,96363.0,0.104774]
[1732758441736,0.00866917,96364.0,96363.0,0.001]
[1732758441967,0.0017162,96364.0,96363.0,0.104774]
[1732758442193,0.00866917,96364.0,96363.0,0.001]
[1732758442434,0.00866917,96364.0,96363.0,0.0018581]
[1732758442435,0.0017162,96364.0,96363.0,0.0018581]
[1732758442668,0.0017162,96364.0,96363.0,0.1056321]
[1732758442669,0.00866917,96364.0,96363.0,0.1056321]
[1732758442896,0.0017162,96364.0,96363.0,0.1056321]
[1732758443356,0.00868043,96364.0,96363.0,0.1056321]
[1732758443607,0.0017162,96364.0,96363.0,0.1056321]
[1732758443863,0.00868043,96364.0,96363.0,0.1056321]
[1732758444107,0.0017162,96364.0,96363.0,0.1056321]
[1732758444356,0.0017162,96364.0,96363.0,0.106512]
[1732758445291,0.0017162,96364.0,96363.0,0.106512]
[1732758451688,0.0017162,96364.0,96363.0,0.28112923]
[1732758451921,0.0017162,96364.0,96363.0,0.1871321]
[1732758452176,0.0017162,96364.0,96363.0,0.3866321]
[1732758452397,0.0017162,96364.0,96363.0,0.91650548]
[1732758452629,0.0017162,96364.0,96363.0,0.72927102]
[1732758452872,0.0017162,96364.0,96363.0,0.91542035]
[1732758453097,0.0017162,96364.0,96363.0,0.72927102]
[1732758454010,0.0027162,96364.0,96363.0,0.73427102]
[1732758454234,0.0027162,96364.0,96363.0,0.87384455]
[1732758454451,0.0027162,96364.0,96363.0,0.52920563]
[1732758454889,0.0027162,96364.0,96363.0,0.53320563]
[1732758455329,0.0027162,96364.0,96363.0,0.3936321]
[1732758455573,0.0027162,96364.0,96363.0,0.3441321]
[1732758457158,0.0027162,96364.0,96363.0,0.1941321]
[1732758457445,0.0027162,96364.0,96363.0,0.1126321]
[1732758461032,0.0027162,96364.0,96363.0,0.0088581]
[1732758461262,0.2281892,96364.0,96363.0,0.0088581]
[1732758461670,0.23867225,96364.0,96363.0,0.0088581]
[1732758461910,0.34151746,96364.0,96363.0,0.0088581]
[1732758462115,0.35154335,96364.0,96363.0,0.0088581]
[1732758462330,0.35154335,96364.0,96363.0,0.0048581]
[1732758462969,0.35154335,96364.0,96363.0,0.0068581]
[1732758463725,0.35054335,96364.0,96363.0,0.0038581]
[1732758469869,0.34788691,96364.0,96363.0,0.0038581]
[1732758470126,0.35747196,96364.0,96363.0,0.0028581]
[1732758470560,0.35747196,96364.0,96363.0,0.0008581]
[1732758471148,0.36047196,96364.0,96363.0,0.0008581]
[1732758471595,0.35786905,96364.0,96363.0,0.0008581]
[1732758474435,0.01952495,96364.0,96363.0,0.0008581]
[1732758475365,0.12329795,96364.0,96363.0,0.0008581]
[1732758479608,0.27364316,96364.0,96363.0,0.0008581]
[1732758480688,0.34904316,96364.0,96363.0,0.0008581]
[1732758495555,0.49904316,96364.0,96363.0,0.0008581]
[1732758496207,0.53136092,96364.0,96363.0,0.0008581]
[1732758496638,0.54136092,96364.0,96363.0,0.0008581]
[1732758498937,0.53136092,96364.0,96363.0,0.0008581]
[1732758499176,0.22614316,96364.0,96363.0,0.0008581]
[1732758500525,0.30694316,96364.0,96363.0,0.0008581]
[1732758500948,0.30354316,96364.0,96363.0,0.0008581]
[1732758501884,0.22274316,96364.0,96363.0,0.0008581]
[1732758506481,0.22445976,96364.0,96363.0,0.0008581]
[1732758520801,0.35425976,96364.0,96363.0,0.0008581]
[1732758521101,1.09606943,96364.0,96363.0,0.0008581]
[1732758521326,0.89609048,96364.0,96363.0,1e-07]
[1732758521549,1.17566522,96364.0,96363.0,1e-07]
[1732758521767,0.89609048,96364.0,96363.0,1e-07]
[1732758522191,0.89077428,96364.0,96363.0,1e-07]
[1732758522440,0.113786,96352.0,96351.0,0.0008581]
[1732758522648,0.7616748,96352.0,96351.0,0.0008581]
[1732758522890,0.253794,96344.0,96343.0,0.0008581]
[1732758523108,0.518802,96344.0,96343.0,0.0008581]
[1732758523328,0.66478318,96344.0,96343.0,0.0008581]
[1732758523537,0.84171208,96344.0,96343.0,0.0008581]
[1732758523755,0.52512453,96344.0,96343.0,0.0008581]
[1732758523990,0.84175225,96344.0,96343.0,0.0008581]
[1732758524225,0.66475849,96344.0,96343.0,0.0008581]
[1732758524461,0.52912453,96344.0,96343.0,0.0008581]
[1732758524693,0.67852715,96344.0,96343.0,0.0008581]
[1732758524904,0.5065304,96344.0,96343.0,0.0008581]
[1732758525351,0.59958739,96344.0,96343.0,0.0008581]
[1732758525559,0.60658739,96344.0,96343.0,0.0008581]
[1732758525998,0.5135304,96344.0,96343.0,0.0008581]
[1732758528720,0.2337304,96344.0,96343.0,0.0008581]
[1732758530738,0.2297304,96344.0,96343.0,0.0008581]
[1732758530967,0.2337304,96344.0,96343.0,0.0008581]
[1732758531399,0.2267304,96344.0,96343.0,0.0008581]
[1732758531607,0.2297304,96344.0,96343.0,0.0008581]
[1732758531828,0.2327304,96344.0,96343.0,0.0008581]
[1732758532043,0.2257304,96344.0,96343.0,0.0008581]
[1732758532286,0.2287304,96344.0,96343.0,0.0008581]
[1732758532541,0.2227304,96344.0,96343.0,0.0008581]
[1732758532952,0.2277304,96344.0,96343.0,0.0008581]
[1732758534297,0.21996174,96344.0,96343.0,0.0008581]
[1732758542272,0.21296174,96344.0,96343.0,0.0008581]
[1732758542501,0.21496174,96344.0,96343.0,0.0008581]
[1732758543211,0.21996174,96344.0,96343.0,0.0008581]
[1732758543882,0.21796174,96344.0,96343.0,0.0008581]
[1732758544347,0.21996174,96344.0,96343.0,0.0008581]
[1732758545690,0.21796174,96344.0,96343.0,0.0008581]
[1732758545912,0.21296174,96344.0,96343.0,0.0008581]
[1732758546373,0.01032253,96344.0,96343.0,0.10789661]
[1732758546610,0.004,96344.0,96343.0,0.13500161]
[1732758547068,0.006,96344.0,96343.0,0.13500161]
[1732758547305,0.01230127,96344.0,96343.0,0.13500161]
[1732758547540,0.006,96344.0,96343.0,0.13500161]
[1732758547770,0.01230127,96344.0,96343.0,0.13500161]
[1732758548019,0.006,96344.0,96343.0,0.23879661]
[1732758548269,0.004,96344.0,96343.0,0.23879661]
[1732758548528,0.0017168,96351.0,96350.0,0.103788]
[1732758548760,0.0017168,96351.0,96350.0,0.10703151]
[1732758549199,0.0017168,96351.0,96350.0,0.18803151]
[1732758549442,0.0017168,96351.0,96350.0,0.18997709]
[1732758549673,0.0017168,96351.0,96350.0,0.19840939]
[1732758549925,0.0017168,96351.0,96350.0,0.1932203]
[1732758550140,0.0027168,96351.0,96350.0,0.1932203]
[1732758551409,0.0027168,96351.0,96350.0,0.1964633]
[1732758551615,0.0017168,96351.0,96350.0,0.19322012]
[1732758551838,0.0017168,96351.0,96350.0,0.19522012]
[1732758552048,0.0017168,96351.0,96350.0,0.09243212]
[1732758552273,0.1055038,96351.0,96350.0,0.01143212]
[1732758552482,0.20834901,96351.0,96350.0,0.006243]
[1732758552694,0.2246938,96351.0,96350.0,0.003]
[1732758552895,0.21468739,96351.0,96350.0,0.003]
[1732758553792,0.21468739,96351.0,96350.0,0.00624333]
[1732758554911,0.21468739,96351.0,96350.0,0.003]
[1732758563069,0.21468739,96351.0,96350.0,0.00624335]
[1732758567239,0.21468739,96351.0,96350.0,0.00796015]
[1732758568957,0.00805518,96351.0,96350.0,0.00796015]
[1732758569184,0.00805518,96351.0,96350.0,0.11174815]
[1732758569401,0.0017168,96351.0,96350.0,0.00796015]
[1732758569619,0.1055038,96351.0,96350.0,0.00796015]
[1732758569833,0.11183943,96351.0,96350.0,0.00796015]
[1732758570066,0.00805243,96351.0,96350.0,0.0027168]
[1732758570308,0.00805243,96351.0,96350.0,0.1065048]
[1732758570519,0.00805243,96351.0,96350.0,0.1085048]
[1732758570733,0.00805243,96351.0,96350.0,0.0037168]
[1732758570948,0.00805243,96351.0,96350.0,0.00695989]
[1732758571386,0.00805243,96351.0,96350.0,0.00495989]
[1732758571608,0.00805243,96351.0,96350.0,0.10874789]
[1732758571816,0.00805243,96351.0,96350.0,0.11074789]
[1732758572025,0.00805809,96351.0,96350.0,0.00695989]
[1732758572235,0.0017168,96351.0,96350.0,0.00695989]
[1732758572447,0.0017168,96351.0,96350.0,0.00795989]
[1732758572666,0.00805809,96351.0,96350.0,0.00795989]
[1732758572887,0.0017168,96351.0,96350.0,0.00795989]
[1732758573113,0.00805809,96351.0,96350.0,0.00795989]
[1732758573345,0.0017168,96351.0,96350.0,0.00795989]
[1732758573562,0.00805809,96351.0,96350.0,0.00795989]
[1732758573842,0.0008168,96351.0,96350.0,0.00795989]
[1732758574045,0.00715809,96351.0,96350.0,0.00795989]
[1732758574246,0.0008168,96351.0,96350.0,0.00795989]
[1732758574453,0.00715809,96351.0,96350.0,0.00795989]
[1732758574658,0.0008168,96351.0,96350.0,0.00795989]
[1732758574874,0.01099431,96351.0,96350.0,0.00795989]